Cogmind - Beta 15 @@@ ROGUE MODE // 2025.07.26 @ 12:01:09 Player: s0lid Result: Destroyed by G-47 Trooper with Particle Gun Performance ------------- Evolutions (2) 1000 Regions Visited (5) 1000 Robots Destroyed (39) 195 Value Destroyed (794) 794 Prototype IDs (4) 80 Alien Tech Used (0) 0 Bonus (20) 20 TOTAL SCORE: 3089 Bonus ------- High Alert Combat Kills 20 Cogmind --------- Core Integrity 0/550 Matter 235/300 Energy 97/100 System Corruption 13% Temperature Cool (15) Movement Flying (32) Location -8/Materials Parts ------- > --- POWER (1) -------- (None) > --- PROPULSION (3) --- Improved VTOL Module Improved VTOL Module > --- UTILITY (5) ------ Visual Processing Unit Improved Salvage Targeting Computer Advanced Targeting Computer > --- WEAPON (2) ------- Spear > --- INVENTORY (5) ---- Improved Flight Unit Cesium-ion Thruster Improved Medium Laser Pulse Rifle Peak State ------------ > --- POWER ------------ Micro Nuclear Core > --- PROPULSION ------- Improved VTOL Module Improved VTOL Module Improved VTOL Module > --- UTILITY ---------- Scrap Suit Visual Processing Unit Improved Salvage Targeting Computer Hacking Suite > --- WEAPON ----------- Pulse Rifle Makeshift Spear > --- INVENTORY -------- Ion Engine Large Matter Pod Hardlight Generator Datajack Spear [Rating: 41] Favorites ----------- Power Ion Engine Engine Ion Engine Power Core Micro Nuclear Core Propulsion Wheel Leg Carbon-fiber Leg Wheel Wheel Hover Unit Backup Propulsion I Flight Unit Improved VTOL Module Utility Visual Processing Unit Device Scrap Suit Storage Medium Storage Unit Processor Visual Processing Unit Hackware Hacking Suite Protection Improved Light Armor Plating Weapon Small Laser Energy Gun Small Laser Ballistic Gun Assault Rifle Launcher Rocket Launcher Piercing Weapon Spear Special Melee Weapon Datajack Build | -11 -10 -10 -10 -9 -8 ------- Run | Yrd Mat Min Exi Min Mat Slots Evolved 4 | . . . . . 4 Power . | . . . . . . Propulsion 1 | . . . . . 1 Utility 3 | . . . . . 3 Weapon . | . . . . . . Parts Attached 50 | 10 10 . 4 . 26 Power 7 | 1 1 . 2 . 3 Engine 5 | 1 1 . 1 . 2 Core 2 | . . . 1 . 1 Reactor . | . . . . . . Propulsion 12 | 2 3 . . . 7 Treads . | . . . . . . Leg 2 | . . . . . 2 Wheel 6 | 2 3 . . . 1 Hover . | . . . . . . Flight 4 | . . . . . 4 Utility 15 | 4 3 . . . 8 Device 5 | 3 1 . . . 1 Storage 2 | 1 1 . . . . Processor 5 | . 1 . . . 4 Hackware 2 | . . . . . 2 Protection 1 | . . . . . 1 Artifact . | . . . . . . Weapon 16 | 3 3 . 2 . 8 Energy Gun 6 | 1 1 . . . 4 Energy Cannon . | . . . . . . Ballistic Gun 6 | 2 2 . . . 2 Ballistic Cannon . | . . . . . . Launcher 1 | . . . 1 . . Special Weapon . | . . . . . . Impact Weapon . | . . . . . . Slashing Weapon . | . . . . . . Piercing Weapon 2 | . . . . . 2 Special Melee Weapon 1 | . . . 1 . . Unidentified Prototypes 4 | . . . . . 4 Parts Lost 15 | . 1 . . . 14 Power 3 | . . . . . 3 Propulsion 4 | . . . . . 4 Utility 3 | . . . . . 3 Weapon 5 | . 1 . . . 4 Highest Loss Streak 5 | . 1 . . . 5 To Critical Strikes . | . . . . . . Average Backups 8 | 5 9 10 9 9 5 Power . | . . 1 1 1 . Propulsion 2 | 1 2 2 2 2 1 Utility 2 | 1 3 4 3 3 1 Weapon 2 | 1 1 1 2 3 1 Tool/Special . | . . . . . . Unused Backups 14 | 3 3 1 2 1 4 Power 2 | . 1 . 1 . . Propulsion 5 | 1 1 1 . 1 1 Utility 5 | 1 1 . . . 3 Weapon 2 | 1 . . 1 . . Tool/Special . | . . . . . . Average Slot Usage (%) 94 | . 99 100 100 100 84 Engine 6 | . 14 14 2 . 4 Core 5 | . . . 11 14 3 Wheel 20 | . 27 28 28 28 4 Flight 6 | . . . . . 20 Device 3 | . 8 . . . 4 Storage 10 | . 14 14 14 14 1 Processor 14 | . 3 14 14 14 22 Hackware 1 | . . . . . 3 Energy Gun 10 | . 11 14 13 14 4 Ballistic Gun 6 | . 15 14 . . 4 Piercing Weapon 1 | . . . . . 5 Special Melee Weapon 6 | . . . 13 14 2 Peak Build Rating 41 | 9 9 9 13 13 41 Average Rating 16 | 6 8 9 11 12 31 On Entrance 8 | . 8 9 9 13 13 Naked Turns . | . . . . . . Heaviest Build 21 | 15 19 18 21 18 21 Greatest Support 36 | 20 20 20 20 20 36 Greatest Overweight (x) 2 | . 1 . 1 . 2 Average Overweight (x) . | . . . . . . Largest Inventory Capacity 10 | 8 10 10 10 10 10 Average Capacity 8 | 7 9 10 10 10 5 Most Carried 10 | 8 10 10 10 10 10 Average Carried 8 | 5 9 9 9 9 5 Final Capacity 10 | 8 10 10 10 10 5 Final Carried 10 | 8 10 10 10 10 4 Class Distribution -------------------- 55% | Scavenger-Mutant 23% | Sprinter 21% | Mutant Dominant Class ---------------- Scavenger-Mutant | -10/Materials Scavenger-Mutant | -10/Mines Scavenger-Mutant | -10/Exiles Scavenger-Mutant | -9/Mines Sprinter | -8/Materials Resources | -11 -10 -10 -10 -9 -8 ----------- Run | Yrd Mat Min Exi Min Mat Matter Collected 1237 | 376 276 137 83 . 365 Remotely 10 | 10 . . . . . Salvage Created 1547 | 252 238 180 342 . 535 Parts 105 | 23 22 14 16 . 30 Haulers Intercepted 1 | . . . . . 1 Recyclers Shooed 2 | . . 2 . . . Parts Field Recycled . | . . . . . . Retrieved Matter . | . . . . . . Parts Self-Destructed . | . . . . . . Prevented . | . . . . . . Kills | -11 -10 -10 -10 -9 -8 ------- Run | Yrd Mat Min Exi Min Mat Combat Hostiles Destroyed 25 | . 9 2 . . 14 Melee 2 | . . . . . 2 Guns 21 | . 9 2 . . 10 AOE 2 | . . . . . 2 Classes Destroyed 9 | 3 3 . . . 3 Worker 2 | 2 . . . . . Tunneler 7 | 6 . 1 . . . Hauler 1 | . . . . . 1 Recycler 2 | 1 . 1 . . . Watcher 2 | . 2 . . . . Swarmer 12 | . 6 . . . 6 Grunt 10 | . 3 2 . . 5 Brawler 1 | . . . . . 1 Sentry 2 | . . . . . 2 Best Kill Streak 7 | 4 7 3 . . 4 Combat Bots Only 7 | . 7 2 . . 4 Max Kills in Single Turn 3 | 1 1 1 . . 3 Gunslinging . | . . . . . . Exploded 2 | . . . . . 2 Melee 1 | . . . . . 1 Uniques/NPCs Destroyed . | . . . . . . Combat | -11 -10 -10 -10 -9 -8 -------- Run | Yrd Mat Min Exi Min Mat Hostile Shots Fired 281 | . 44 13 . . 224 Missed 109 | . 14 6 . . 89 Hits 172 | . 30 7 . . 135 Melee 1 | . . . . . 1 Projectile 171 | . 30 7 . . 134 Critical Strikes 7 | . . . . . 7 Damage Taken 2646 | 36 259 97 4 . 2250 Core 683 | . 104 18 . . 561 Absorbed by Shields . | . . . . . . Regen/Repaired (Parts) 27 | . . . . . 27 Core Remaining (%) 75 | 100 . . . 51 . Volleys Fired 134 | 21 32 10 37 . 34 Largest 2 | 2 2 2 1 . 2 Hottest 88 | 60 60 60 40 . 88 Shots Fired 207 | 40 52 19 37 . 59 Gun 203 | 40 52 19 34 . 58 Cannon . | . . . . . . Launcher 4 | . . . 3 . 1 Special . | . . . . . . Kinetic 104 | 34 35 9 . . 26 Thermal 87 | . 11 10 34 . 32 Explosive 4 | . . . 3 . 1 Electromagnetic 12 | 6 6 . . . . Robot Hit Streak 12 | 10 7 8 12 . 12 Robot Miss Streak 5 | 5 2 2 3 . 2 Penetration Max . | . . . . . . Secondary Targets 4 | . 1 . . . 3 Max Gunslinging Chain 1 | . 1 . . . 1 Shots Hit Robots 158 | 24 31 14 32 . 57 Core Hits 75 | 9 15 8 16 . 27 Critical Kills . | . . . . . . Critical Parts Destroyed . | . . . . . . Critical Strikes 3 | . 1 . . . 2 Burn 1 | . . . . . 1 Corrupt 1 | . 1 . . . . Impale 1 | . . . . . 1 Melee Attacks 37 | . . . 9 . 28 Impact . | . . . . . . Slashing . | . . . . . . Piercing 27 | . . . . . 27 Sneak Attacks 9 | . . . 6 . 3 Combat Hostiles 1 | . . . . . 1 Follow-up Attacks . | . . . . . . Damage Inflicted 2446 | 316 300 162 266 . 1402 Guns 1839 | 265 300 162 256 . 856 Cannons . | . . . . . . Explosions 251 | 51 . . 10 . 190 Melee 356 | . . . . . 356 Ramming . | . . . . . . Kinetic 926 | 183 200 88 . . 455 Thermal 862 | 51 80 74 256 . 401 Explosive 200 | . . . 10 . 190 Electromagnetic 102 | 82 20 . . . . Impact . | . . . . . . Slashing . | . . . . . . Piercing 356 | . . . . . 356 Highest Corruption 13 | . . . . . 13 Average Corruption 13 | . . . . . 13 Corruption Purged . | . . . . . . Corruption Blocked . | . . . . . . Effects 4 | . . . . . 4 Energy Discharges 2 | . . . . . 2 Alerts 1 | . . . . . 1 Misdirections 1 | . . . . . 1 Overload Shots . | . . . . . . Overflow Damage . | . . . . . . Projectiles . | . . . . . . Explosions . | . . . . . . Melee . | . . . . . . Knockbacks . | . . . . . . Impact . | . . . . . . Kinetic . | . . . . . . Secondary . | . . . . . . Self-Inflicted Damage 89 | 36 . . 5 . 48 Shots 3 | 1 . . 1 . 1 Rammed . | . . . . . . Targets Rammed . | . . . . . . Kicked . | . . . . . . Crushed . | . . . . . . Highest Temperature 364 | 12 46 36 24 . 364 Average Temperature 67 | 12 17 23 8 . 112 Received Heat Transfer 966 | . 48 54 . . 864 Effects 1 | . . . . . 1 Shutdowns 1 | . . . . . 1 Siege Activations . | . . . . . . Martial Activations . | . . . . . . Shielding Activations . | . . . . . . Robots Disrupted . | . . . . . . Combat Hostiles . | . . . . . . Robots Corrupted . | . . . . . . Combat Hostiles . | . . . . . . Parts Fried . | . . . . . . Impact Corruptions . | . . . . . . Robots Melted . | . . . . . . Combat Hostiles . | . . . . . . Parts Melted 2 | . . . . . 2 Heat Transferred 1951 | 100 175 175 575 . 926 Parts Sabotaged . | . . . . . . Parts Stolen . | . . . . . . Parts Stripped . | . . . . . . Power Chain Reactions 2 | 2 . . . . . Alert | -11 -10 -10 -10 -9 -8 ------- Run | Yrd Mat Min Exi Min Mat Maximum Alert Level 2 | . . . . . 2 Low Security (%) 72 | 100 100 100 . 100 30 Level 1 14 | . . . . . 36 Level 2 13 | . . . . . 32 Level 3 . | . . . . . . Level 4 . | . . . . . . Level 5 . | . . . . . . High Security . | . . . . . . Max Security . | . . . . . . Peak Influence 668 | 10 132 40 . . 668 Initial 15 | . 3 15 . . . Average 128 | 2 75 21 . . 260 Influence Increases 1703 | 45 245 105 20 . 1288 Destroy 0b10 Robot/C 500 | . 180 40 . . 280 Destroy 0b10 Robot/NC 90 | 45 10 10 20 . 5 Destroy Leader 106 | . 34 10 . . 62 Successful Hack 26 | . 6 . . . 20 Disable Machine 45 | . . . . . 45 Destroy Structure 21 | . . . . . 21 Partial Spotted 120 | . . . . . 120 Lose Combat Pursuer 795 | . 15 45 . . 735 Influence Decreases 1040 | 40 209 116 50 . 625 Entered New Map 58 | . 2 26 30 . . Time Decay 657 | 40 197 90 20 . 310 Search Patrol Dispatched 150 | . . . . . 150 Lost Part 135 | . 10 . . . 125 Lost Ally 40 | . . . . . 40 Squads Dispatched 8 | . 2 . . . 6 Investigation 1 | . . . . . 1 Extermination . | . . . . . . Reinforcement 7 | . 2 . . . 5 Assault . | . . . . . . Garrison . | . . . . . . Intercept . | . . . . . . Searches Triggered 1 | . . . . . 1 Construction Impeded . | . . . . . . Haulers Reinforced . | . . . . . . Active Scanning Responses . | . . . . . . Cargo Convoy Interrupts . | . . . . . . Stealth | -11 -10 -10 -10 -9 -8 --------- Run | Yrd Mat Min Exi Min Mat Distress Signals 5 | . . . . . 5 Communications Jammed . | . . . . . . Distress Signals . | . . . . . . Times Spotted 104 | . 15 6 . . 83 Peak Tracking Total 21 | . 4 2 . . 21 Tactical Retreats 16 | . 1 2 . . 13 Traps | -11 -10 -10 -10 -9 -8 ------- Run | Yrd Mat Min Exi Min Mat Traps Triggered 2 | . . . . . 2 Indirectly . | . . . . . . Trap Hack Attempts 1 | . . . . . 1 Triggered . | . . . . . . Disarmed . | . . . . . . Reprogrammed . | . . . . . . Reused . | . . . . . . Traps Extracted . | . . . . . . Installed . | . . . . . . Triggered . | . . . . . . Machines | -11 -10 -10 -10 -9 -8 ---------- Run | Yrd Mat Min Exi Min Mat Machines Disabled 3 | . . . . . 3 Max in Single Turn 1 | . . . . . 1 Machines Repaired . | . . . . . . Machines Dismantled . | . . . . . . Machines Sabotaged . | . . . . . . Overloaded Fab Kills . | . . . . . . Hacking | -11 -10 -10 -10 -9 -8 --------- Run | Yrd Mat Min Exi Min Mat Machines Accessed 12 | . 3 . 4 . 5 Terminals 6 | . 2 . . . 4 Fabricators . | . . . . . . Repair Stations 2 | . 1 . . . 1 Recycling Units . | . . . . . . Scanalyzers . | . . . . . . Garrison Access . | . . . . . . Total Hacks 66 | . 5 . 49 . 12 Successful 57 | . 1 . 49 . 7 Failed 9 | . 4 . . . 5 Catastrophic 2 | . 1 . . . 1 Database Lockouts . | . . . . . . Manual 7 | . 3 . . . 4 Terminals 13 | . 3 . . . 10 Fabricators . | . . . . . . Repair Stations 4 | . 2 . . . 2 Recycling Units . | . . . . . . Scanalyzers . | . . . . . . Garrison Access . | . . . . . . Terminal Hacks 54 | . . . 49 . 5 Record 49 | . . . 49 . . Robot Analysis 2 | . . . . . 2 Investigation Status 1 | . . . . . 1 Hauler Manifests 1 | . . . . . 1 Zone Layout 1 | . . . . . 1 Fabricator Hacks . | . . . . . . Repair Station Hacks 3 | . 1 . . . 2 Scan Component 1 | . . . . . 1 Repair 1 | . . . . . 1 Refit 1 | . 1 . . . . Recycling Unit Hacks . | . . . . . . Scanalyzer . | . . . . . . Garrison Access Hacks . | . . . . . . Unauthorized Hacks . | . . . . . . Terminals . | . . . . . . Fabricators . | . . . . . . Repair Stations . | . . . . . . Recycling Units . | . . . . . . Scanalyzers . | . . . . . . Garrison Access . | . . . . . . Data Cores Recovered . | . . . . . . Used . | . . . . . . Hacking Detections 7 | . 3 . . . 4 Full Trace Events . | . . . . . . Feedback Events . | . . . . . . Feedback Blocked . | . . . . . . Robot Schematics Acquired . | . . . . . . Robots Built . | . . . . . . Authchips . | . . . . . . Time . | . . . . . . Total Robot Build Rating . | . . . . . . Part Schematics Acquired . | . . . . . . Parts Built . | . . . . . . Authchips . | . . . . . . Time . | . . . . . . Total Part Build Rating . | . . . . . . Parts Repaired 1 | . . . . . 1 Time 60 | . . . . . 60 Parts Recycled . | . . . . . . Recycled Matter . | . . . . . . Retrieved Matter . | . . . . . . Retrieved Components . | . . . . . . Parts Scanalyzed . | . . . . . . Part Schematics Acquired . | . . . . . . Parts Damaged . | . . . . . . Bothacking | -11 -10 -10 -10 -9 -8 ------------ Run | Yrd Mat Min Exi Min Mat Used RIF Installer . | . . . . . . Robots Hacked . | . . . . . . Non-combat . | . . . . . . Combat . | . . . . . . Robot Hacks Applied . | . . . . . . Relay Couplers Released . | . . . . . . Fabnet Peak Effective % . | . . . . . . Robots Rewired 4 | . . . 3 . 1 Allies Hacked . | . . . . . . Hacks Repelled . | . . . . . . Allies | -11 -10 -10 -10 -9 -8 -------- Run | Yrd Mat Min Exi Min Mat Total Allies 4 | . . . 3 . 1 Largest Group 3 | . . . 3 3 3 Highest-Rated Group 37 | . . . 37 37 37 Highest-Rated Ally 21 | . . . 21 21 21 Total Orders . | . . . . . . Ally Attacks 8 | . . . . . 8 Total Damage 97 | . . . . . 97 Kills 1 | . . . . . 1 Allies Corrupted . | . . . . . . Allies Melted . | . . . . . . Intel | -11 -10 -10 -10 -9 -8 ------- Run | Yrd Mat Min Exi Min Mat Active Infowar (turns) 2135 | 39 388 196 701 125 686 Optics 1813 | . 105 196 701 125 686 Sensors 125 | . 125 . . . . Terrain 28 | 28 . . . . . Seismic 169 | 11 158 . . . . Robot Analysis Total 2 | . . . . . 2 Derelict Logs Recovered 2 | . . 1 . 1 . Drone Launches . | . . . . . . Drone Recoveries . | . . . . . . Exploration | -11 -10 -10 -10 -9 -8 ------------- Run | Yrd Mat Min Exi Min Mat Turns Passed 2400 | 239 453 196 701 125 686 Spaces Moved 2665 | 196 396 180 703 148 1042 Core 1 | 1 . . . . . Treads . | . . . . . . Legs 14 | . . . . . 14 Wheels 1685 | 195 392 180 703 148 67 Hover 4 | . 4 . . . . Flight 961 | . . . . . 961 Fastest Speed 29 | 50 80 80 80 80 29 Average Speed 62 | 79 80 80 80 80 34 Slowest Speed 190 | 80 156 80 95 80 190 Overloaded Moves . | . . . . . . Propulsion Burnouts . | . . . . . . Robots Hopped 32 | . . . . . 32 Potential Cave-ins . | . . . . . . Cave-ins Triggered 1 | . . . . . 1 Exploration Rate (%) 50 | 6 49 49 93 26 81 Regions Visited 5 Branch Regions 3 Pre-discovered Areas 2 | . . 1 1 . . Known Exits Taken . | . . . . . . Unknown Exits Taken 5 | 1 1 1 1 1 . Scrap Searched 2 | . . 1 . 1 . Spaces Dug 33 | . . . 18 . 15 Terrain Destroyed 50 | 9 . . 18 . 23 Melee 15 | . . . . . 15 Projectile . | . . . . . . AOE 35 | 9 . . 18 . 8 Terrain Rammed . | . . . . . . Walls Destroyed . | . . . . . . Machines Disabled . | . . . . . . Actions | -11 -10 -10 -10 -9 -8 --------- Run | Yrd Mat Min Exi Min Mat Total 3137 | 241 490 213 799 155 1239 Wait 187 | . 16 22 38 5 106 Move 2604 | 195 395 179 702 147 986 Hop 24 | . . . . . 24 Pick Up 29 | 9 9 1 3 1 6 Fast Attach 31 | 9 6 . 1 . 15 Attach 9 | 1 . . . . 8 Detach 10 | 3 . . . . 7 Swap 27 | . 10 . 4 . 13 Drop 44 | 3 22 1 5 2 11 Fire 134 | 21 32 10 37 . 34 Melee 37 | . . . 9 . 28 Ram . | . . . . . . Kick . | . . . . . . Crush . | . . . . . . Escape Stasis . | . . . . . . Rewire . | . . . . . . Trap 1 | . . . . . 1 Miscellaneous . | . . . . . . Route ------- -11/Scrapyard -10/Materials -10/Mines -10/Exiles (discovered 2 exits: [*Min x2]) -9/Mines -8/Materials (discovered 2 exits: [*Fac x2]) History --------- Turn | Location | Event 15 | -11/Scrapyard | Discovered new exit (range 15) 240 | -11/Scrapyard | Entered Materials 336 | -10/Materials | Build established: Mutant 351 | -10/Materials | Discovered new exit (range 12) 375 | -10/Materials | Destroyed 7 combat bots 693 | -10/Materials | Entered Mines 714 | -10/Mines | Learned location of Mines (-9) 742 | -10/Mines | Received a Rocket Launcher from a helpful Derelict 878 | -10/Mines | Build established: Scavenger-Mutant 885 | -10/Mines | Deemed a non-threat by the Exiles lab entrance 886 | -10/Mines | Discovered new exit (range 5) 889 | -10/Mines | Entered Exiles 889 | -10/Exiles | Found Exiles lab destroyed 900 | -10/Exiles | Discovered new exit (range 16) 1164 | -10/Exiles | Discovered new exit (range 10) 1212 | -10/Exiles | Learned location of Zion (-7) 1590 | -10/Exiles | Entered Mines 1590 | -9/Mines | Accompanied by 3 allies 1592 | -9/Mines | Met a Derelict bent on vengeance 1642 | -9/Mines | Assembled infested the area 1647 | -9/Mines | Assisted by a Guerilla fighting off Assembled 1654 | -9/Mines | Learned Materials terminal intel 1665 | -9/Mines | Found a Scrap Suit stashed away for nefarious purposes 1668 | -9/Mines | Found Scrap Suit 1673 | -9/Mines | Discovered new exit (range 11) 1715 | -9/Mines | Entered Materials 1715 | -8/Materials | Accompanied by 3 allies 1715 | -8/Materials | Evolved 4 slots: Propulsion x1, Utility x3 1716 | -8/Materials | Loaded intel: 12 terminal locations 1781 | -8/Materials | Lost 3 allies 1847 | -8/Materials | Lost 5 parts (3n2w) 1932 | -8/Materials | Discovered new exit (range 18) 1999 | -8/Materials | Core integrity fell below 50% 2069 | -8/Materials | Discovered new exit (range 17) 2087 | -8/Materials | Build established: Sprinter 2115 | -8/Materials | Search patrols dispatched 2172 | -8/Materials | Repaired Imp. VTOL Module 2328 | -8/Materials | Crushed by falling debris 2328 | -8/Materials | System corruption reached 10% 2362 | -8/Materials | Core integrity fell below 20% 2367 | -8/Materials | Lost 4 parts (1n2u1w) 2401 | -8/Materials | Destroyed by G-47 Trooper with Particle Gun Last Messages --------------- 02343_ C-30 ARC bursts open, deploying its payload. 02343_ G-50 Soldier unfolds itself. 02343_ G-47 Trooper unfolds itself. 02347_ Critical hit (Burn: +37). 02352_ Acquired Pulse Rifle. 02355_ System corrupted: Energy discharge (-31). 02356_ S-10 Pest destroyed. 02362_ Switching to secondary target: Y-45 Defender. 02366_ K-01 Serf collects debris. 02367_ S-10 Pest destroyed. 02367_ Switching to secondary target: Y-45 Defender. 02370_ K-01 Serf destroyed. 02377_ G-50 Soldier destroyed. 02377_ Switching to secondary target: G-47 Trooper. 02381_ Power failure, Lgt. Nuclear Core shutdown. 02381_ System Shield destroyed. 02383_ Enh. Autogun destroyed. 02384_ System corrupted: Energy discharge (-46). 02385_ Lgt. Nuclear Core destroyed. 02387_ K-01 Serf collects debris. Map ----- +----------------------------------------------------+ | ????#T /[ #???##!!!!##??????????????###" "####? | | ????#"=%%!! #???#! !#??????????????# #? | | ????# ! *%! !#???# #??????????????# """ #? | | #########+######## ################ """ #? | | ==[* | # """ # # """ #? | | % + """ # # #? | | # " " # # !!! #? | | ############### """ # % # !! # !!! #? | | ??????????????# """"" # %= # !! # !! #? | | ??????????????# """"" # * " !# #? | | ??????????????# """"" ###+######+######/######? | | ??????????????# """ """ ^ #??? | | ??????????????# "T" [ #??? | | ??????????????# " =%! #??? | | ????????###############+##### " * #### | | ????????# #????# # " # | | ?????#### #????# = # "" # | | ?????#"S [#???## =!# # ] | | ?????#""" [[*#???# ] !# # | | ?????# "" [![#???## # + | | ????????# [==#????# # # | | ????????#**=%#????# # ############# # = | | #########=[%=#????# # !!#???????# # | | #*^%*#????########### !!#???????# # | | ##/###???????# u[r + /#???????# #### | | #=[%#T######## g@ # //#???????# | | +*=%[ tu o g ! # ! #???????# | | #*]=####l##### # ! #???????# | | ## ####""#???# # ########????# | | ## # ##???# # # !![#????# | | ## # " ############# #[ ![ #????#"#### | | ## # T # """ """ # +% ![ #????## | | ####+##### # " # """"""""" # #= #????## """ | | # # """"" + # [#????#T """ | | / # # # ! #????## """ | | #### #! # ###########??# | | ######/##### # = # # ???##### | | ?# ## # % = # # ####### | | ?# #############/##### + + | | ?# #??????????# # #### | | ?# "############ # ????##/### | | ?+ "%/ + ????# | | ?# "############# ### ### ?????# | | ?# #???????????# #?# #?# ?????# | | ?# #????########+#?# #?###"#+####### | | ?# #????# #?# #???# # | | ?##########????# """ #?# #???# ####"# | | ???????????????# """"" ### #???# #??# | | ???????????????# """"" + #???# % #??# " | | ???????????????# """"" # ########/######### " | +----------------------------------------------------+ Best States ------------- Heat Dissipation 31 Energy Generation 15 Energy Capacity 250 Matter Stores 300 Matter Capacity 300 Sight Range 18 Robot Scan Range 14 Terrain Scan Range 16 Terrain Scan Density 10 Armor Coverage 150 Evasion (%) 64 Targeting Accuracy 14 Salvage Targeting 2 Offensive Hacking 10 Defensive Hacking 10 Item Schematics ----------------- None Robot Schematics ------------------ None Fabricated ------------ Nothing Repaired ---------- Imp. VTOL Module | 46% | -8/Materials Alien Tech Used ----------------- None Achievements -------------- None Challenges ------------ None Game ------ Seed TripodWarlordBasin Manual? 0 Play Time 00:43:10 Cumulative 221.8 hours Start 2025.07.20 @ 18:41:40 End 2025.07.26 @ 12:01:09 Sessions 5 Manual Loads 0 Difficulty Rogue Special Mode None Game No. 226 Rogue 226 Adventurer 0 Explorer 0 Win Type - Total 0 Types 0/0/0/0/0/0/0/0/0/0 Lore% 23 Gallery% 57 Achievement% 45 Wizard Run 0 Options --------- Layout 0 ASCII 0 Keyboard 1 Movement Vi Keybinds 0 Fullscreen 1 Font 24/Smallcaps Map View 76x50 Zoom Use 0% Tactical HUD 1 Map Filters NONE Filters NONE Steam 1 RUN: de91e889-b372-42e5-a92b-22e0c1d5bd32